[Event "Titled Tuesday Blitz November 08 Early 2022"]
[White "Aradhya, Garg"]
[Black "Howell, David W L"]
[WhiteFideId "25006746"]
[BlackFideId "410608"]
[WhiteElo "2725"]
[BlackElo "2949"]
[Result "0-1"]
[Round "07"]
[TimeControl "180+1"]
[Date "2022.11.09"]
[WhiteClock "0:00:32"]
[BlackClock "0:00:29"]

1. d4 {[%clk 0:03:00]}  d5 {[%clk 0:02:52]} 2. c3 {[%clk 0:03:00]}  e6 {[%clk 0:02:20]} 3. Nf3 {[%clk 0:03:00]}  c5 {[%clk 0:02:21]} 4. Bg5 {[%clk 0:02:55]}  Be7 {[%clk 0:02:16]} 5. Bxe7 {[%clk 0:02:54]}  Qxe7 {[%clk 0:02:17]} 6. e3 {[%clk 0:02:51]}  Nf6 {[%clk 0:02:15]} 7. Bb5+ {[%clk 0:02:50]}  Bd7 {[%clk 0:02:14]} 8. a4 {[%clk 0:02:50]}  O-O {[%clk 0:02:14]} 9. O-O {[%clk 0:02:49]}  Rc8 {[%clk 0:02:10]} 10. Ne5 {[%clk 0:02:46]}  Ne4 {[%clk 0:02:05]} 11. Nd2 {[%clk 0:02:45]}  Bxb5 {[%clk 0:01:50]} 12. axb5 {[%clk 0:02:45]}  Nd6 {[%clk 0:01:51]} 13. b6 {[%clk 0:02:33]}  a6 {[%clk 0:01:45]} 14. Ra5 {[%clk 0:02:23]}  cxd4 {[%clk 0:01:27]} 15. exd4 {[%clk 0:02:22]}  Nd7 {[%clk 0:01:28]} 16. Nxd7 {[%clk 0:02:17]}  Qxd7 {[%clk 0:01:29]} 17. Qb3 {[%clk 0:02:17]}  Rc6 {[%clk 0:01:23]} 18. Rc5 {[%clk 0:02:13]}  Rac8 {[%clk 0:01:21]} 19. Rxc6 {[%clk 0:02:14]}  Rxc6 {[%clk 0:01:21]} 20. Nf3 {[%clk 0:02:00]}  Nc4 {[%clk 0:01:21]} 21. Qc2 {[%clk 0:01:56]}  Rxb6 {[%clk 0:01:16]} 22. b3 {[%clk 0:01:56]}  Na5 {[%clk 0:01:09]} 23. Ng5 {[%clk 0:01:33]}  g6 {[%clk 0:01:08]} 24. b4 {[%clk 0:01:33]}  Nc4 {[%clk 0:01:05]} 25. Qd3 {[%clk 0:01:33]}  Qd8 {[%clk 0:00:56]} 26. f4 {[%clk 0:01:30]}  h6 {[%clk 0:00:50]} 27. Nf3 {[%clk 0:01:29]}  Rc6 {[%clk 0:00:49]} 28. h4 {[%clk 0:01:25]}  h5 {[%clk 0:00:40]} 29. Ng5 {[%clk 0:01:24]}  Qf6 {[%clk 0:00:39]} 30. f5 {[%clk 0:01:15]}  exf5 {[%clk 0:00:20]} 31. Re1 {[%clk 0:01:15]}  Nd6 {[%clk 0:00:16]} 32. Re5 {[%clk 0:01:01]}  Ne4 {[%clk 0:00:17]} 33. Qe3 {[%clk 0:00:32]}  Kg7 {[%clk 0:00:13]} 34. Rxd5 {[%clk 0:00:28]}  Rxc3 {[%clk 0:00:14]} 35. Qf4 {[%clk 0:00:28]}  Nxg5 {[%clk 0:00:08]} 36. hxg5 {[%clk 0:00:29]}  Qe6 {[%clk 0:00:06]} 37. Re5 {[%clk 0:00:27]}  Qc4 {[%clk 0:00:06]} 38. Re7 {[%clk 0:00:22]}  Qd5 {[%clk 0:00:06]} 39. Re8 {[%clk 0:00:17]}  Rc4 {[%clk 0:00:05]} 40. Qe5+ {[%clk 0:00:08]}  Qxe5 {[%clk 0:00:05]} 41. dxe5 {[%clk 0:00:09]}  Rxb4 {[%clk 0:00:05]} 42. Re7 {[%clk 0:00:09]}  Rb6 {[%clk 0:00:06]} 43. Kf2 {[%clk 0:00:09]}  a5 {[%clk 0:00:06]} 44. e6 {[%clk 0:00:09]}  Rxe6 {[%clk 0:00:06]} 45. Rxb7 {[%clk 0:00:09]}  Ra6 {[%clk 0:00:07]} 46. Rb3 {[%clk 0:00:09]}  a4 {[%clk 0:00:07]} 47. Ra3 {[%clk 0:00:09]}  Kf8 {[%clk 0:00:08]} 48. Ke3 {[%clk 0:00:10]}  Ke7 {[%clk 0:00:09]} 49. Kd4 {[%clk 0:00:10]}  Kd6 {[%clk 0:00:09]} 50. Kc4 {[%clk 0:00:11]}  Ke5 {[%clk 0:00:10]} 51. Kb5 {[%clk 0:00:11]}  Ra8 {[%clk 0:00:11]} 52. Kb6 {[%clk 0:00:11]}  Kf4 {[%clk 0:00:10]} 53. Kb7 {[%clk 0:00:12]}  Ra5 {[%clk 0:00:10]} 54. Kb6 {[%clk 0:00:12]}  Ra8 {[%clk 0:00:11]} 55. Kb7 {[%clk 0:00:13]}  Re8 {[%clk 0:00:12]} 56. Rxa4+ {[%clk 0:00:12]}  Kxg5 {[%clk 0:00:12]} 57. Ra2 {[%clk 0:00:12]}  Re6 {[%clk 0:00:11]} 58. Kc8 {[%clk 0:00:11]}  h4 {[%clk 0:00:12]} 59. Ra7 {[%clk 0:00:11]}  Re2 {[%clk 0:00:11]} 60. Rxf7 {[%clk 0:00:11]}  Rxg2 {[%clk 0:00:11]} 61. Re7 {[%clk 0:00:10]}  h3 {[%clk 0:00:11]} 62. Re2 {[%clk 0:00:11]}  Rxe2 {[%clk 0:00:10]} 63. Kd7 {[%clk 0:00:11]}  f4 {[%clk 0:00:11]} 64. Kd6 {[%clk 0:00:12]}  f3 {[%clk 0:00:12]} 65. Kd5 {[%clk 0:00:12]}  h2 {[%clk 0:00:13]} 66. Kd4 {[%clk 0:00:13]}  h1=Q {[%clk 0:00:14]} 67. Kc3 {[%clk 0:00:14]}  Kf4 {[%clk 0:00:14]} 68. Kd3 {[%clk 0:00:15]}  g5 {[%clk 0:00:15]} 69. Kd4 {[%clk 0:00:15]}  g4 {[%clk 0:00:16]} 70. Kd3 {[%clk 0:00:16]}  g3 {[%clk 0:00:17]} 71. Kd4 {[%clk 0:00:17]}  g2 {[%clk 0:00:18]} 72. Kd3 {[%clk 0:00:18]}  Qh2 {[%clk 0:00:16]} 73. Kc4 {[%clk 0:00:19]}  f2 {[%clk 0:00:16]} 74. Kd3 {[%clk 0:00:19]}  Kf3 {[%clk 0:00:17]} 75. Kd4 {[%clk 0:00:19]}  Qg3 {[%clk 0:00:13]} 76. Kc3 {[%clk 0:00:20]}  f1=Q {[%clk 0:00:13]} 77. Kc4 {[%clk 0:00:21]}  g1=Q {[%clk 0:00:14]} 78. Kd5 {[%clk 0:00:22]}  Qg5+ {[%clk 0:00:13]} 79. Kd6 {[%clk 0:00:21]}  Qd1+ {[%clk 0:00:13]} 80. Kc6 {[%clk 0:00:21]}  Q1c5+ {[%clk 0:00:11]} 81. Kb7 {[%clk 0:00:20]}  Qb4+ {[%clk 0:00:11]} 82. Ka6 {[%clk 0:00:20]}  Qa3+ {[%clk 0:00:10]} 83. Kb6 {[%clk 0:00:20]}  Qab3+ {[%clk 0:00:11]} 84. Ka6 {[%clk 0:00:20]}  Rc2 {[%clk 0:00:10]} 85. Ka7 {[%clk 0:00:19]}  Kf2 {[%clk 0:00:11]} 86. Ka8 {[%clk 0:00:19]}  Kg3 {[%clk 0:00:12]} 87. Ka7 {[%clk 0:00:19]}  Kh4 {[%clk 0:00:13]} 88. Ka6 {[%clk 0:00:20]}  Kh5 {[%clk 0:00:14]} 89. Ka7 {[%clk 0:00:20]}  Kh6 {[%clk 0:00:15]} 90. Ka8 {[%clk 0:00:21]}  Kh7 {[%clk 0:00:16]} 91. Ka7 {[%clk 0:00:21]}  Kh8 {[%clk 0:00:17]} 92. Ka8 {[%clk 0:00:21]}  Kg8 {[%clk 0:00:18]} 93. Ka7 {[%clk 0:00:22]}  Kf8 {[%clk 0:00:18]} 94. Ka8 {[%clk 0:00:22]}  Ke8 {[%clk 0:00:19]} 95. Ka7 {[%clk 0:00:23]}  Kd8 {[%clk 0:00:20]} 96. Ka6 {[%clk 0:00:23]}  Qgg4 {[%clk 0:00:19]} 97. Ka7 {[%clk 0:00:23]}  Kd7 {[%clk 0:00:20]} 98. Ka6 {[%clk 0:00:24]}  Kd6 {[%clk 0:00:21]} 99. Ka7 {[%clk 0:00:24]}  Kd5 {[%clk 0:00:22]} 100. Ka6 {[%clk 0:00:25]}  Kd4 {[%clk 0:00:23]} 101. Ka7 {[%clk 0:00:25]}  Kd3 {[%clk 0:00:24]} 102. Ka6 {[%clk 0:00:26]}  Kd2 {[%clk 0:00:24]} 103. Ka7 {[%clk 0:00:26]}  Qgh3 {[%clk 0:00:21]} 104. Ka6 {[%clk 0:00:27]}  Kc1 {[%clk 0:00:22]} 105. Ka7 {[%clk 0:00:27]}  Kb1 {[%clk 0:00:23]} 106. Ka6 {[%clk 0:00:28]}  Ka1 {[%clk 0:00:24]} 107. Ka7 {[%clk 0:00:28]}  Kb2 {[%clk 0:00:25]} 108. Ka6 {[%clk 0:00:29]}  Kc3 {[%clk 0:00:25]} 109. Ka7 {[%clk 0:00:30]}  Kd4 {[%clk 0:00:26]} 110. Ka6 {[%clk 0:00:30]}  Ke5 {[%clk 0:00:27]} 111. Ka7 {[%clk 0:00:31]}  Kf6 {[%clk 0:00:28]} 112. Ka6 {[%clk 0:00:31]}  Kg7 {[%clk 0:00:29]} 113. Ka7 {[%clk 0:00:32]}  Qhe3+ {[%clk 0:00:29]} 114. Ka6 {[%clk 0:00:32]}  Kh8 {[%clk 0:00:28]} 115. Ka5 {[%clk 0:00:32]}  Qa1# {[%clk 0:00:29]} 0-1


[Site "https://www.chess.com"]

[Event "Titled Tuesday Blitz November 08 Early 2022"]
[White "Artemenko, Oleg"]
[Black "Goroshkov, Maksym"]
[WhiteFideId "14201798"]
[BlackFideId "14142716"]
[WhiteElo "2287"]
[BlackElo "2257"]
[Result "1/2-1/2"]
[Round "07"]
[TimeControl "180+1"]
[Date "2022.11.09"]
[WhiteClock "0:00:19"]
[BlackClock "0:00:22"]

1. d4 {[%clk 0:02:43]}  Nf6 {[%clk 0:02:59]} 2. Nc3 {[%clk 0:02:42]}  d5 {[%clk 0:02:59]} 3. Bf4 {[%clk 0:02:42]}  c6 {[%clk 0:02:59]} 4. e3 {[%clk 0:02:39]}  e6 {[%clk 0:02:59]} 5. g4 {[%clk 0:02:39]}  Bd6 {[%clk 0:02:59]} 6. g5 {[%clk 0:02:39]}  Ng8 {[%clk 0:02:53]} 7. Nf3 {[%clk 0:02:38]}  Ne7 {[%clk 0:02:51]} 8. Bd3 {[%clk 0:02:38]}  Ng6 {[%clk 0:02:51]} 9. Bxd6 {[%clk 0:02:37]}  Qxd6 {[%clk 0:02:51]} 10. h4 {[%clk 0:02:38]}  Nd7 {[%clk 0:02:47]} 11. h5 {[%clk 0:02:38]}  Ngf8 {[%clk 0:02:44]} 12. e4 {[%clk 0:02:38]}  b6 {[%clk 0:02:40]} 13. e5 {[%clk 0:02:38]}  Qb4 {[%clk 0:02:38]} 14. a3 {[%clk 0:02:37]}  Qe7 {[%clk 0:02:32]} 15. h6 {[%clk 0:02:37]}  g6 {[%clk 0:02:30]} 16. Qd2 {[%clk 0:02:29]}  Bb7 {[%clk 0:02:28]} 17. Qf4 {[%clk 0:02:29]}  O-O-O {[%clk 0:02:28]} 18. O-O-O {[%clk 0:02:30]}  Nb8 {[%clk 0:02:24]} 19. Nd2 {[%clk 0:02:23]}  Nfd7 {[%clk 0:02:22]} 20. Rh3 {[%clk 0:02:23]}  a6 {[%clk 0:02:16]} 21. Rf3 {[%clk 0:02:20]}  Rhf8 {[%clk 0:02:15]} 22. Ne2 {[%clk 0:02:19]}  c5 {[%clk 0:02:14]} 23. c3 {[%clk 0:02:19]}  Nc6 {[%clk 0:02:13]} 24. Kb1 {[%clk 0:02:19]}  c4 {[%clk 0:02:11]} 25. Bc2 {[%clk 0:02:18]}  b5 {[%clk 0:02:12]} 26. Kc1 {[%clk 0:02:12]}  a5 {[%clk 0:02:11]} 27. Nf1 {[%clk 0:02:12]}  b4 {[%clk 0:02:08]} 28. axb4 {[%clk 0:02:13]}  axb4 {[%clk 0:02:09]} 29. Ne3 {[%clk 0:02:12]}  b3 {[%clk 0:01:51]} 30. Bb1 {[%clk 0:02:12]}  Na7 {[%clk 0:01:33]} 31. Ng4 {[%clk 0:02:06]}  Nb5 {[%clk 0:01:32]} 32. Nf6 {[%clk 0:02:07]}  Nxf6 {[%clk 0:01:30]} 33. Qxf6 {[%clk 0:02:07]}  Qxf6 {[%clk 0:01:18]} 34. Rxf6 {[%clk 0:02:08]}  Nc7 {[%clk 0:01:18]} 35. Ng3 {[%clk 0:02:00]}  Bc6 {[%clk 0:01:12]} 36. Rh1 {[%clk 0:01:50]}  Be8 {[%clk 0:01:07]} 37. Nf1 {[%clk 0:01:35]}  Na6 {[%clk 0:00:55]} 38. Ne3 {[%clk 0:01:34]}  Nb8 {[%clk 0:00:55]} 39. Ng4 {[%clk 0:01:34]}  Nd7 {[%clk 0:00:55]} 40. Rf4 {[%clk 0:01:31]}  Rg8 {[%clk 0:00:48]} 41. Nf6 {[%clk 0:01:30]}  Nxf6 {[%clk 0:00:47]} 42. Rxf6 {[%clk 0:01:31]}  Kd7 {[%clk 0:00:46]} 43. Rf4 {[%clk 0:01:26]}  Ke7 {[%clk 0:00:41]} 44. Re1 {[%clk 0:01:25]}  Ra8 {[%clk 0:00:39]} 45. Kd2 {[%clk 0:01:23]}  Ra7 {[%clk 0:00:34]} 46. Re3 {[%clk 0:01:23]}  Ra1 {[%clk 0:00:27]} 47. Kc1 {[%clk 0:01:19]}  Bd7 {[%clk 0:00:21]} 48. Ref3 {[%clk 0:01:19]}  Rf8 {[%clk 0:00:20]} 49. Rf6 {[%clk 0:01:18]}  Be8 {[%clk 0:00:20]} 50. Re3 {[%clk 0:01:16]}  Bd7 {[%clk 0:00:20]} 51. Re1 {[%clk 0:01:14]}  Rfa8 {[%clk 0:00:19]} 52. Kd2 {[%clk 0:01:13]}  Be8 {[%clk 0:00:18]} 53. Rf3 {[%clk 0:01:12]}  R8a7 {[%clk 0:00:18]} 54. Rg3 {[%clk 0:01:12]}  Ra8 {[%clk 0:00:19]} 55. Rgg1 {[%clk 0:01:12]}  R8a7 {[%clk 0:00:19]} 56. Ke3 {[%clk 0:01:09]}  Ra8 {[%clk 0:00:19]} 57. Kd2 {[%clk 0:01:09]}  R8a7 {[%clk 0:00:19]} 58. Rc1 {[%clk 0:01:09]}  Ra8 {[%clk 0:00:20]} 59. Rge1 {[%clk 0:01:09]}  R8a7 {[%clk 0:00:20]} 60. f4 {[%clk 0:01:06]}  Kf8 {[%clk 0:00:20]} 61. Red1 {[%clk 0:01:01]}  Ra8 {[%clk 0:00:20]} 62. Ke1 {[%clk 0:00:57]}  R8a7 {[%clk 0:00:20]} 63. Rd2 {[%clk 0:00:48]}  Ra8 {[%clk 0:00:20]} 64. Rf2 {[%clk 0:00:48]}  R8a7 {[%clk 0:00:20]} 65. Kd2 {[%clk 0:00:47]}  Ra8 {[%clk 0:00:20]} 66. Rcf1 {[%clk 0:00:46]}  R8a7 {[%clk 0:00:19]} 67. Rg1 {[%clk 0:00:27]}  Ra8 {[%clk 0:00:19]} 68. Rff1 {[%clk 0:00:26]}  R8a7 {[%clk 0:00:19]} 69. Ke3 {[%clk 0:00:24]}  Ra8 {[%clk 0:00:19]} 70. Rg2 {[%clk 0:00:20]}  Bd7 {[%clk 0:00:19]} 71. Rgf2 {[%clk 0:00:19]}  R8a7 {[%clk 0:00:19]} 72. Kf3 {[%clk 0:00:19]}  Ra8 {[%clk 0:00:19]} 73. Kg2 {[%clk 0:00:20]}  R8a7 {[%clk 0:00:19]} 74. Re2 {[%clk 0:00:18]}  Ra8 {[%clk 0:00:20]} 75. Ree1 {[%clk 0:00:19]}  R8a7 {[%clk 0:00:20]} 76. Rg1 {[%clk 0:00:19]}  Ra8 {[%clk 0:00:20]} 77. Ref1 {[%clk 0:00:20]}  R8a7 {[%clk 0:00:20]} 78. Kf2 {[%clk 0:00:20]}  Ra8 {[%clk 0:00:20]} 79. Ke2 {[%clk 0:00:20]}  R8a7 {[%clk 0:00:20]} 80. Kd2 {[%clk 0:00:20]}  Ra8 {[%clk 0:00:21]} 81. Rh1 {[%clk 0:00:20]}  R8a7 {[%clk 0:00:21]} 82. Re1 {[%clk 0:00:20]}  Ra8 {[%clk 0:00:21]} 83. Rc1 {[%clk 0:00:20]}  R8a7 {[%clk 0:00:21]} 84. Rhd1 {[%clk 0:00:20]}  Ra8 {[%clk 0:00:22]} 85. Ke3 {[%clk 0:00:15]}  R8a7 {[%clk 0:00:22]} 86. Re1 {[%clk 0:00:15]}  Ra8 {[%clk 0:00:22]} 87. Rcd1 {[%clk 0:00:15]}  R8a7 {[%clk 0:00:22]} 88. Re2 {[%clk 0:00:15]}  Ra8 {[%clk 0:00:21]} 89. Kf2 {[%clk 0:00:15]}  R8a7 {[%clk 0:00:21]} 90. Ke1 {[%clk 0:00:15]}  Ra8 {[%clk 0:00:21]} 91. Rc1 {[%clk 0:00:16]}  R8a7 {[%clk 0:00:22]} 92. Rd2 {[%clk 0:00:16]}  Ra8 {[%clk 0:00:22]} 93. Rdd1 {[%clk 0:00:16]}  R8a7 {[%clk 0:00:22]} 94. f5 {[%clk 0:00:17]}  exf5 {[%clk 0:00:22]} 95. Kd2 {[%clk 0:00:17]}  Be6 {[%clk 0:00:21]} 96. Ke3 {[%clk 0:00:17]}  Ra8 {[%clk 0:00:21]} 97. Kf4 {[%clk 0:00:17]}  R8a7 {[%clk 0:00:21]} 98. Ke3 {[%clk 0:00:18]}  Ra8 {[%clk 0:00:22]} 99. Kf4 {[%clk 0:00:18]}  R8a7 {[%clk 0:00:22]} 100. Ke3 {[%clk 0:00:19]} 1/2-1/2


[Site "https://www.chess.com"]

[Event "Titled Tuesday Blitz November 08 Early 2022"]
[White "Avazkhonov, Alikhon"]
[Black "Dahlgren, James Allen"]
[WhiteFideId "14208504"]
[BlackFideId "22256873"]
[WhiteElo "1739"]
[BlackElo "2205"]
[Result "1-0"]
[Round "07"]
[TimeControl "180+1"]
[Date "2022.11.09"]
[WhiteClock "0:00:56"]
[BlackClock "0:00:17"]

1. d4 {[%clk 0:03:00]}  e6 {[%clk 0:02:59]} 2. c4 {[%clk 0:02:59]}  c5 {[%clk 0:03:00]} 3. d5 {[%clk 0:02:59]}  Nf6 {[%clk 0:03:01]} 4. Nc3 {[%clk 0:02:59]}  d6 {[%clk 0:02:58]} 5. e4 {[%clk 0:02:59]}  g6 {[%clk 0:02:59]} 6. Bd3 {[%clk 0:02:50]}  Bg7 {[%clk 0:02:58]} 7. h3 {[%clk 0:02:45]}  O-O {[%clk 0:02:58]} 8. Nge2 {[%clk 0:02:45]}  exd5 {[%clk 0:02:55]} 9. exd5 {[%clk 0:02:46]}  Re8 {[%clk 0:02:54]} 10. O-O {[%clk 0:02:46]}  Nbd7 {[%clk 0:02:54]} 11. f4 {[%clk 0:02:45]}  a6 {[%clk 0:02:53]} 12. Ng3 {[%clk 0:02:44]}  h5 {[%clk 0:02:49]} 13. Nge4 {[%clk 0:02:40]}  Nxe4 {[%clk 0:02:45]} 14. Nxe4 {[%clk 0:02:41]}  Nf6 {[%clk 0:02:45]} 15. Ng5 {[%clk 0:02:31]}  b5 {[%clk 0:02:44]} 16. cxb5 {[%clk 0:02:30]}  Nxd5 {[%clk 0:02:43]} 17. Bc4 {[%clk 0:02:27]}  Bd4+ {[%clk 0:02:37]} 18. Kh2 {[%clk 0:02:23]}  Ne3 {[%clk 0:02:20]} 19. Bxe3 {[%clk 0:02:21]}  Rxe3 {[%clk 0:02:21]} 20. Nxf7 {[%clk 0:02:18]}  Qh4 {[%clk 0:02:17]} 21. Nxd6+ {[%clk 0:02:01]}  Kg7 {[%clk 0:02:12]} 22. Nxc8 {[%clk 0:01:57]}  Rxc8 {[%clk 0:01:51]} 23. bxa6 {[%clk 0:01:58]}  Rd8 {[%clk 0:01:49]} 24. a7 {[%clk 0:01:17]}  Be5 {[%clk 0:00:41]} 25. fxe5 {[%clk 0:00:58]}  Rxd1 {[%clk 0:00:34]} 26. Raxd1 {[%clk 0:00:58]}  Qxc4 {[%clk 0:00:17]} 27. a8=Q {[%clk 0:00:56]} 1-0


[Site "https://www.chess.com"]

[Event "Titled Tuesday Blitz November 08 Early 2022"]
[White "Baches Garcia, Guillermo"]
[Black "Goryachkina, Aleksandra"]
[WhiteFideId "2209764"]
[BlackFideId "4147103"]
[WhiteElo "2464"]
[BlackElo "2484"]
[Result "0-1"]
[Round "07"]
[TimeControl "180+1"]
[Date "2022.11.09"]
[WhiteClock "0:00:07"]
[BlackClock "0:00:05"]

1. e4 {[%clk 0:03:00]}  c5 {[%clk 0:02:59]} 2. Nf3 {[%clk 0:03:01]}  e6 {[%clk 0:02:59]} 3. c4 {[%clk 0:03:01]}  a6 {[%clk 0:02:53]} 4. Nc3 {[%clk 0:03:00]}  Nc6 {[%clk 0:02:49]} 5. Be2 {[%clk 0:02:58]}  Nf6 {[%clk 0:02:48]} 6. d4 {[%clk 0:02:50]}  cxd4 {[%clk 0:02:47]} 7. Nxd4 {[%clk 0:02:50]}  Bb4 {[%clk 0:02:41]} 8. Nxc6 {[%clk 0:02:49]}  bxc6 {[%clk 0:02:37]} 9. e5 {[%clk 0:02:38]}  Ne4 {[%clk 0:02:36]} 10. Qd4 {[%clk 0:01:58]}  Qa5 {[%clk 0:02:34]} 11. Qxe4 {[%clk 0:01:36]}  Bxc3+ {[%clk 0:02:33]} 12. Kf1 {[%clk 0:01:36]}  Bxe5 {[%clk 0:02:26]} 13. b4 {[%clk 0:01:35]}  Qc7 {[%clk 0:02:23]} 14. Rb1 {[%clk 0:01:36]}  O-O {[%clk 0:02:22]} 15. f4 {[%clk 0:01:31]}  Bf6 {[%clk 0:02:15]} 16. Bd3 {[%clk 0:01:04]}  g6 {[%clk 0:02:15]} 17. h4 {[%clk 0:01:03]}  d5 {[%clk 0:02:15]} 18. Qf3 {[%clk 0:00:57]}  dxc4 {[%clk 0:02:10]} 19. Bxc4 {[%clk 0:00:57]}  a5 {[%clk 0:01:59]} 20. h5 {[%clk 0:00:39]}  axb4 {[%clk 0:01:52]} 21. hxg6 {[%clk 0:00:38]}  fxg6 {[%clk 0:01:51]} 22. Be3 {[%clk 0:00:24]}  Ba6 {[%clk 0:01:35]} 23. Rxb4 {[%clk 0:00:18]}  Bxc4+ {[%clk 0:01:02]} 24. Rxc4 {[%clk 0:00:18]}  Rxa2 {[%clk 0:01:02]} 25. Rh3 {[%clk 0:00:03]}  Ra6 {[%clk 0:00:49]} 26. Qe4 {[%clk 0:00:03]}  Qd7 {[%clk 0:00:47]} 27. Kg1 {[%clk 0:00:02]}  Qd5 {[%clk 0:00:34]} 28. Bc5 {[%clk 0:00:02]}  Rd8 {[%clk 0:00:25]} 29. Re3 {[%clk 0:00:02]}  Qxe4 {[%clk 0:00:12]} 30. Rexe4 {[%clk 0:00:02]}  Kf7 {[%clk 0:00:10]} 31. Kh2 {[%clk 0:00:02]}  Rd7 {[%clk 0:00:10]} 32. Bf2 {[%clk 0:00:02]}  Rd6 {[%clk 0:00:09]} 33. Re2 {[%clk 0:00:02]}  Ra5 {[%clk 0:00:09]} 34. Rec2 {[%clk 0:00:03]}  Rf5 {[%clk 0:00:09]} 35. g3 {[%clk 0:00:02]}  h5 {[%clk 0:00:06]} 36. Rxc6 {[%clk 0:00:02]}  Rxc6 {[%clk 0:00:06]} 37. Rxc6 {[%clk 0:00:03]}  g5 {[%clk 0:00:07]} 38. Be3 {[%clk 0:00:03]}  g4 {[%clk 0:00:07]} 39. Rc7+ {[%clk 0:00:02]}  Ke8 {[%clk 0:00:07]} 40. Rc6 {[%clk 0:00:02]}  Kd7 {[%clk 0:00:07]} 41. Ra6 {[%clk 0:00:03]}  Rd5 {[%clk 0:00:07]} 42. Ra7+ {[%clk 0:00:03]}  Kc6 {[%clk 0:00:07]} 43. Ra6+ {[%clk 0:00:03]}  Kd7 {[%clk 0:00:08]} 44. Ra7+ {[%clk 0:00:03]}  Ke8 {[%clk 0:00:08]} 45. Ra6 {[%clk 0:00:03]}  Kf7 {[%clk 0:00:08]} 46. Ra7+ {[%clk 0:00:03]}  Kg6 {[%clk 0:00:09]} 47. Ra6 {[%clk 0:00:03]}  Kf5 {[%clk 0:00:09]} 48. Ra3 {[%clk 0:00:03]}  Ke4 {[%clk 0:00:09]} 49. Bf2 {[%clk 0:00:03]}  Rd2 {[%clk 0:00:08]} 50. Kg1 {[%clk 0:00:03]}  Bd4 {[%clk 0:00:05]} 51. Bxd4 {[%clk 0:00:02]}  Rxd4 {[%clk 0:00:05]} 52. Kg2 {[%clk 0:00:02]}  Rd2+ {[%clk 0:00:05]} 53. Kg1 {[%clk 0:00:01]}  Rd3 {[%clk 0:00:05]} 54. Ra4+ {[%clk 0:00:01]}  Kf3 {[%clk 0:00:05]} 55. Ra6 {[%clk 0:00:01]}  Kxg3 {[%clk 0:00:05]} 56. Kf1 {[%clk 0:00:02]}  Rf3+ {[%clk 0:00:04]} 57. Ke2 {[%clk 0:00:03]}  Rxf4 {[%clk 0:00:05]} 58. Rxe6 {[%clk 0:00:04]}  h4 {[%clk 0:00:05]} 59. Rh6 {[%clk 0:00:05]}  h3 {[%clk 0:00:05]} 60. Rh5 {[%clk 0:00:05]}  Rf7 {[%clk 0:00:05]} 61. Ke3 {[%clk 0:00:06]}  h2 {[%clk 0:00:05]} 62. Rxh2 {[%clk 0:00:07]}  Kxh2 {[%clk 0:00:05]} 0-1


[Site "https://www.chess.com"]

[Event "Titled Tuesday Blitz November 08 Early 2022"]
[White "Baskakov, Egor"]
[Black "Ibarra Jerez, Jose Carlos"]
[WhiteFideId "24197866"]
[BlackFideId "2226332"]
[WhiteElo "2211"]
[BlackElo "2638"]
[Result "0-1"]
[Round "07"]
[TimeControl "180+1"]
[Date "2022.11.08"]
[WhiteClock "0:00:09"]
[BlackClock "0:00:03"]

1. e4 {[%clk 0:03:00]}  c5 {[%clk 0:02:57]} 2. Nf3 {[%clk 0:03:00]}  e6 {[%clk 0:02:55]} 3. Be2 {[%clk 0:03:00]}  Nc6 {[%clk 0:02:52]} 4. c4 {[%clk 0:03:00]}  Nf6 {[%clk 0:02:52]} 5. Nc3 {[%clk 0:03:01]}  Qb6 {[%clk 0:02:45]} 6. O-O {[%clk 0:02:58]}  Be7 {[%clk 0:02:44]} 7. d3 {[%clk 0:02:56]}  O-O {[%clk 0:02:43]} 8. Rb1 {[%clk 0:02:55]}  Rd8 {[%clk 0:02:26]} 9. e5 {[%clk 0:02:35]}  Ng4 {[%clk 0:02:23]} 10. Bf4 {[%clk 0:02:35]}  Qc7 {[%clk 0:02:15]} 11. d4 {[%clk 0:02:29]}  cxd4 {[%clk 0:02:13]} 12. Nxd4 {[%clk 0:02:29]}  Ngxe5 {[%clk 0:02:07]} 13. Bg3 {[%clk 0:02:15]}  a6 {[%clk 0:01:57]} 14. Rc1 {[%clk 0:02:10]}  d6 {[%clk 0:01:48]} 15. Nd5 {[%clk 0:02:05]}  exd5 {[%clk 0:01:41]} 16. cxd5 {[%clk 0:02:06]}  Qb6 {[%clk 0:01:36]} 17. dxc6 {[%clk 0:02:05]}  Nxc6 {[%clk 0:01:31]} 18. Nb3 {[%clk 0:01:44]}  d5 {[%clk 0:01:28]} 19. Kh1 {[%clk 0:01:43]}  Bf6 {[%clk 0:01:26]} 20. Qd2 {[%clk 0:01:40]}  a5 {[%clk 0:01:18]} 21. Nc5 {[%clk 0:01:26]}  Qxb2 {[%clk 0:01:15]} 22. Rc2 {[%clk 0:01:25]}  Qb4 {[%clk 0:01:10]} 23. Qc1 {[%clk 0:01:19]}  Bf5 {[%clk 0:01:07]} 24. Bd3 {[%clk 0:01:17]}  Bxd3 {[%clk 0:01:01]} 25. Nxd3 {[%clk 0:01:18]}  Qb5 {[%clk 0:01:02]} 26. Rd1 {[%clk 0:01:09]}  Nb4 {[%clk 0:01:02]} 27. Qb1 {[%clk 0:01:04]}  Qa4 {[%clk 0:00:57]} 28. Re2 {[%clk 0:01:00]}  Re8 {[%clk 0:00:53]} 29. Rxe8+ {[%clk 0:00:52]}  Rxe8 {[%clk 0:00:53]} 30. Nxb4 {[%clk 0:00:48]}  Qxb4 {[%clk 0:00:48]} 31. Qc1 {[%clk 0:00:48]}  d4 {[%clk 0:00:44]} 32. h3 {[%clk 0:00:47]}  h6 {[%clk 0:00:43]} 33. Kh2 {[%clk 0:00:43]}  Qc3 {[%clk 0:00:33]} 34. Qb1 {[%clk 0:00:41]}  Qc6 {[%clk 0:00:29]} 35. Rc1 {[%clk 0:00:38]}  Qd5 {[%clk 0:00:28]} 36. a4 {[%clk 0:00:37]}  d3 {[%clk 0:00:27]} 37. Rd1 {[%clk 0:00:38]}  Rd8 {[%clk 0:00:24]} 38. Qc1 {[%clk 0:00:27]}  Be5 {[%clk 0:00:22]} 39. f4 {[%clk 0:00:26]}  Bf6 {[%clk 0:00:23]} 40. Qc7 {[%clk 0:00:18]}  Rd7 {[%clk 0:00:21]} 41. Qb8+ {[%clk 0:00:17]}  Kh7 {[%clk 0:00:22]} 42. Qc8 {[%clk 0:00:16]}  d2 {[%clk 0:00:17]} 43. Qc2+ {[%clk 0:00:15]}  Qd3 {[%clk 0:00:17]} 44. Qc8 {[%clk 0:00:15]}  b5 {[%clk 0:00:12]} 45. axb5 {[%clk 0:00:13]}  Qxb5 {[%clk 0:00:13]} 46. Qc2+ {[%clk 0:00:12]}  Qd3 {[%clk 0:00:13]} 47. Qc6 {[%clk 0:00:13]}  Qd5 {[%clk 0:00:09]} 48. Qc2+ {[%clk 0:00:12]}  Qd3 {[%clk 0:00:09]} 49. Qc6 {[%clk 0:00:12]}  Rd5 {[%clk 0:00:08]} 50. Qe8 {[%clk 0:00:10]}  Qc2 {[%clk 0:00:06]} 51. Qe2 {[%clk 0:00:10]}  a4 {[%clk 0:00:06]} 52. Bf2 {[%clk 0:00:10]}  a3 {[%clk 0:00:06]} 53. g4 {[%clk 0:00:11]}  a2 {[%clk 0:00:06]} 54. g5 {[%clk 0:00:11]}  a1=Q {[%clk 0:00:05]} 55. gxf6 {[%clk 0:00:11]}  Qaxd1 {[%clk 0:00:04]} 56. Qe8 {[%clk 0:00:10]}  Qg6 {[%clk 0:00:04]} 57. fxg7 {[%clk 0:00:09]}  Kxg7 {[%clk 0:00:04]} 58. Qe3 {[%clk 0:00:08]}  Qdc2 {[%clk 0:00:03]} 59. f5 {[%clk 0:00:08]}  Qcxf5 {[%clk 0:00:03]} 60. Qc3+ {[%clk 0:00:08]}  Qgf6 {[%clk 0:00:03]} 61. Qg3+ {[%clk 0:00:09]}  Kh7 {[%clk 0:00:03]} 0-1


[Site "https://www.chess.com"]